Cogmind - Beta 14 @@@ ROGUE MODE // 2025.03.21 @ 23:12:21 Player: SovietPaperclip Result: Destroyed by as-98097 with Assembled Blade Performance ------------- Evolutions (0) 0 Regions Visited (4) 800 Robots Destroyed (19) 95 Value Destroyed (425) 425 Prototype IDs (24) 480 Alien Tech Used (0) 0 Bonus (300) 300 TOTAL SCORE: 2100 Bonus ------- Aligned with FarCom 300 Cogmind --------- Core Integrity 0/250 Matter 273/300 Energy 160/160 System Corruption 8% Temperature Cool (0) Movement Core (1450) Ox28 Location -9/Mines Parts ------- > --- POWER (1) -------- Light Nuclear Core > --- PROPULSION (2) --- (None) > --- UTILITY (2) ------ Huge Storage Unit > --- WEAPON (2) ------- (None) > --- INVENTORY (25) --- Ion Engine Light Nuclear Core Light Treads Improved Terrain Scanner Seismic Detector Tractor Beam Sensor Drone Bay (20/20) PSU Rigger Assault Rifle Assault Rifle Assault Rifle Assault Rifle Assault Rifle AWS/Gauss Peak State ------------ > --- POWER ------------ Light Nuclear Core > --- PROPULSION ------- Compact Wheel Compact Wheel > --- UTILITY ---------- Huge Storage Unit Sensor Drone Bay > --- WEAPON ----------- Assault Rifle Assault Rifle > --- INVENTORY -------- Ion Engine Light Treads Improved Terrain Scanner Seismic Detector Light Armor Plating Tractor Beam Assault Rifle Assault Rifle Assault Rifle Assault Rifle Grenade Launcher [Rating: 17] Favorites ----------- Power Ion Engine Engine Ion Engine Power Core Light Nuclear Core Propulsion Light Treads Treads Light Treads Wheel Compact Wheel Utility Light Armor Plating Device Seismic Detector Storage Huge Storage Unit Protection Light Armor Plating Weapon Assault Rifle Energy Gun Medium Laser Ballistic Gun Assault Rifle Launcher Grenade Launcher Build | -11 -10 -10 -10 -9 ------- Run | Yrd Mat Min Exi Min Slots Evolved . | . . . . . Power . | . . . . . Propulsion . | . . . . . Utility . | . . . . . Weapon . | . . . . . Parts Attached 20 | 7 4 6 . 3 Power 2 | 1 . 1 . . Engine 1 | 1 . . . . Core 1 | . . 1 . . Reactor . | . . . . . Propulsion 4 | 2 . 2 . . Treads 2 | 2 . . . . Leg . | . . . . . Wheel 2 | . . 2 . . Hover . | . . . . . Flight . | . . . . . Utility 7 | 2 2 3 . . Device 2 | 1 . 1 . . Storage 3 | 1 1 1 . . Processor . | . . . . . Hackware . | . . . . . Protection 2 | . 1 1 . . Artifact . | . . . . . Weapon 7 | 2 2 . . 3 Energy Gun 2 | 2 . . . . Energy Cannon . | . . . . . Ballistic Gun 3 | . 2 . . 1 Ballistic Cannon . | . . . . . Launcher 2 | . . . . 2 Special Weapon . | . . . . . Impact Weapon . | . . . . . Slashing Weapon . | . . . . . Piercing Weapon . | . . . . . Special Melee Weapon . | . . . . . Unidentified Prototypes 1 | . . 1 . . Parts Lost 6 | . . 1 . 5 Power . | . . . . . Propulsion 3 | . . 1 . 2 Utility 1 | . . . . 1 Weapon 2 | . . . . 2 Highest Loss Streak 5 | . . 1 . 5 To Critical Strikes . | . . . . . Average Slot Usage (%) 98 | . 99 94 100 99 Engine 7 | . 14 9 . . Core 6 | . . 4 14 14 Treads 13 | . 28 12 . . Wheel 13 | . . 10 28 28 Storage 14 | . 14 14 14 14 Protection 13 | . 12 14 14 13 Energy Gun 2 | . 6 . . . Ballistic Gun 24 | . 21 28 28 25 Peak Build Rating 17 | 7 8 17 13 13 Average Rating 9 | 5 7 8 12 12 On Entrance 7 | . 7 8 11 13 Naked Turns . | . . . . . Heaviest Build 93 | 14 52 92 92 93 Greatest Support 40 | 40 40 40 32 32 Greatest Overweight (x) 28 | 3 1 3 2 28 Average Overweight (x) 1 | . . 1 2 2 Largest Inventory Capacity 25 | 8 20 25 25 25 Average Capacity 20 | 7 17 21 25 25 Most Carried 15 | 3 11 12 14 15 Average Carried 10 | 1 8 10 12 14 Final Capacity 25 | 8 20 25 25 25 Final Carried 15 | 3 10 11 14 15 Class Distribution -------------------- 100% | Mutant Dominant Class ---------------- Mutant | -10/Materials Mutant | -10/Mines Mutant | -10/Exiles Mutant | -9/Mines Resources | -11 -10 -10 -10 -9 ----------- Run | Yrd Mat Min Exi Min Matter Collected 654 | 270 163 123 20 78 Remotely . | . . . . . Salvage Created 657 | 121 263 188 . 85 Parts 43 | 7 25 7 . 4 Haulers Intercepted . | . . . . . Recyclers Shooed 2 | . 1 1 . . Parts Field Recycled . | . . . . . Retrieved Matter . | . . . . . Parts Self-Destructed . | . . . . . Prevented . | . . . . . Kills | -11 -10 -10 -10 -9 ------- Run | Yrd Mat Min Exi Min Combat Hostiles Destroyed 22 | . 10 2 . 10 Guns 12 | . 10 2 . . AOE 10 | . . . . 10 Classes Destroyed 6 | 2 3 . . 1 Worker 1 | . 1 . . . Tunneler 1 | 1 . . . . Recycler 2 | 1 . 1 . . Swarmer 6 | . 6 . . . Grunt 9 | . 4 2 . 3 Assembled 7 | . . . . 7 Best Kill Streak 7 | 2 6 2 . 7 Combat Bots Only 7 | . 6 2 . 7 Max Kills in Single Turn 3 | 1 2 1 . 3 Gunslinging 1 | . 1 . . . Exploded 3 | . . . . 3 Melee . | . . . . . Uniques/NPCs Destroyed . | . . . . . Combat | -11 -10 -10 -10 -9 -------- Run | Yrd Mat Min Exi Min Hostile Shots Fired 102 | . 53 5 . 44 Missed 26 | . 15 . . 11 Damage Taken 957 | . 374 73 . 510 Core 269 | . 30 16 . 223 Absorbed by Shields . | . . . . . Core Remaining (%) 100 | 100 . . . . Volleys Fired 53 | 2 31 10 . 10 Largest 2 | 2 2 2 . 1 Hottest 90 | 90 90 40 . 30 Shots Fired 96 | 4 62 20 . 10 Gun 86 | 4 62 20 . . Cannon . | . . . . . Launcher 10 | . . . . 10 Special . | . . . . . Kinetic 72 | . 52 20 . . Thermal 14 | 4 10 . . . Explosive 10 | . . . . 10 Electromagnetic . | . . . . . Robot Hit Streak 9 | 3 9 7 . 7 Robot Miss Streak 5 | . 5 3 . . Penetration Max . | . . . . . Secondary Targets 2 | . 1 1 . . Max Gunslinging Chain 1 | . 1 1 . . Shots Hit Robots 57 | 3 35 14 . 5 Core Hits 46 | 3 18 6 . 19 Critical Kills . | . . . . . Critical Parts Destroyed . | . . . . . Critical Strikes . | . . . . . Melee Attacks . | . . . . . Impact . | . . . . . Slashing . | . . . . . Piercing . | . . . . . Sneak Attacks . | . . . . . Combat Hostiles . | . . . . . Follow-up Attacks . | . . . . . Damage Inflicted 1334 | 34 475 187 . 638 Guns 690 | 34 469 187 . . Cannons . | . . . . . Explosions 638 | . . . . 638 Melee . | . . . . . Ramming 6 | . 6 . . . Kinetic 570 | . 383 187 . . Thermal 120 | 34 86 . . . Explosive 638 | . . . . 638 Electromagnetic . | . . . . . Impact . | . . . . . Slashing . | . . . . . Piercing . | . . . . . Highest Corruption 8 | . . . . 8 Average Corruption 8 | . . . . 8 Corruption Purged . | . . . . . Corruption Blocked . | . . . . . Overload Shots . | . . . . . Overflow Damage 53 | . . . . 53 Projectiles . | . . . . . Explosions 53 | . . . . 53 Melee . | . . . . . Knockbacks 1 | . 1 . . . Impact 1 | . 1 . . . Kinetic . | . . . . . Secondary . | . . . . . Self-Inflicted Damage 7 | . . . . 7 Shots 1 | . . . . 1 Rammed 1 | . 1 . . . Targets Rammed 1 | . 1 . . . Kicked . | . . . . . Crushed . | . . . . . Highest Temperature 123 | 60 123 8 . 63 Average Temperature 27 | 31 28 4 . 33 Received Heat Transfer 345 | . 120 42 . 183 Siege Activations . | . . . . . Robots Corrupted . | . . . . . Combat Hostiles . | . . . . . Parts Fried . | . . . . . Impact Corruptions . | . . . . . Robots Melted . | . . . . . Combat Hostiles . | . . . . . Parts Melted . | . . . . . Heat Transferred 334 | 99 235 . . . Parts Sabotaged . | . . . . . Parts Stolen . | . . . . . Parts Stripped . | . . . . . Power Chain Reactions . | . . . . . Alert | -11 -10 -10 -10 -9 ------- Run | Yrd Mat Min Exi Min Peak Influence 304 | 10 304 114 . 115 Initial 69 | . 6 69 . . Average 106 | 5 138 101 . 79 Maximum Alert Level 1 | . 1 . . . Low Security (%) 86 | 100 72 100 . 100 Level 1 13 | . 27 . . . Level 2 . | . . . . . Level 3 . | . . . . . Level 4 . | . . . . . Level 5 . | . . . . . High Security . | . . . . . Max Security . | . . . . . Squads Dispatched 3 | . 3 . . . Investigation . | . . . . . Extermination . | . . . . . Reinforcement 3 | . 3 . . . Assault . | . . . . . Garrison . | . . . . . Intercept . | . . . . . Searches Triggered . | . . . . . Construction Impeded . | . . . . . Haulers Reinforced . | . . . . . Active Scanning Responses . | . . . . . Cargo Convoy Interrupts . | . . . . . Stealth | -11 -10 -10 -10 -9 --------- Run | Yrd Mat Min Exi Min Distress Signals . | . . . . . Communications Jammed . | . . . . . Distress Signals . | . . . . . Times Spotted 35 | . 14 2 . 19 Peak Tracking Total 9 | . 5 2 . 9 Tactical Retreats 1 | . 1 . . . Traps | -11 -10 -10 -10 -9 ------- Run | Yrd Mat Min Exi Min Traps Triggered . | . . . . . Indirectly . | . . . . . Trap Hack Attempts . | . . . . . Triggered . | . . . . . Disarmed . | . . . . . Reprogrammed . | . . . . . Reused . | . . . . . Traps Extracted . | . . . . . Installed . | . . . . . Triggered . | . . . . . Machines | -11 -10 -10 -10 -9 ---------- Run | Yrd Mat Min Exi Min Machines Disabled . | . . . . . Max in Single Turn . | . . . . . Machines Repaired . | . . . . . Machines Dismantled . | . . . . . Machines Sabotaged . | . . . . . Overloaded Fab Kills . | . . . . . Hacking | -11 -10 -10 -10 -9 --------- Run | Yrd Mat Min Exi Min Machines Accessed 8 | . 5 1 2 . Terminals 5 | . 5 . . . Fabricators . | . . . . . Repair Stations . | . . . . . Recycling Units . | . . . . . Scanalyzers . | . . . . . Garrison Access . | . . . . . Total Hacks 14 | . 11 1 2 . Successful 4 | . 1 1 2 . Failed 9 | . 9 . . . Catastrophic 1 | . 1 . . . Database Lockouts 1 | . 1 . . . Manual 11 | . 10 . 1 . Terminals 11 | . 11 . . . Fabricators . | . . . . . Repair Stations . | . . . . . Recycling Units . | . . . . . Scanalyzers . | . . . . . Garrison Access . | . . . . . Terminal Hacks 4 | . 1 1 2 . Record 1 | . . . 1 . Part Schematic 1 | . 1 . . . Open Door 1 | . . 1 . . Derelict Proto ID Bank 1 | . . . 1 . Fabricator Hacks . | . . . . . Repair Station Hacks . | . . . . . Recycling Unit Hacks . | . . . . . Scanalyzer . | . . . . . Garrison Access Hacks . | . . . . . Unauthorized Hacks . | . . . . . Terminals . | . . . . . Fabricators . | . . . . . Repair Stations . | . . . . . Recycling Units . | . . . . . Scanalyzers . | . . . . . Garrison Access . | . . . . . Data Cores Recovered . | . . . . . Used . | . . . . . Hacking Detections 5 | . 5 . . . Full Trace Events . | . . . . . Feedback Events . | . . . . . Feedback Blocked . | . . . . . Robot Schematics Acquired . | . . . . . Robots Built . | . . . . . Authchips . | . . . . . Time . | . . . . . Total Robot Build Rating . | . . . . . Part Schematics Acquired 1 | . 1 . . . Parts Built . | . . . . . Authchips . | . . . . . Time . | . . . . . Total Part Build Rating . | . . . . . Parts Repaired . | . . . . . Time . | . . . . . Parts Recycled . | . . . . . Recycled Matter . | . . . . . Retrieved Matter . | . . . . . Retrieved Components . | . . . . . Parts Scanalyzed . | . . . . . Part Schematics Acquired . | . . . . . Parts Damaged . | . . . . . Bothacking | -11 -10 -10 -10 -9 ------------ Run | Yrd Mat Min Exi Min Used RIF Installer . | . . . . . Robots Hacked . | . . . . . Non-combat . | . . . . . Combat . | . . . . . Robot Hacks Applied . | . . . . . Relay Couplers Released . | . . . . . Fabnet Peak Effective % . | . . . . . Robots Rewired . | . . . . . Allies Hacked . | . . . . . Hacks Repelled . | . . . . . Allies | -11 -10 -10 -10 -9 -------- Run | Yrd Mat Min Exi Min Total Allies . | . . . . . Largest Group . | . . . . . Highest-Rated Group . | . . . . . Highest-Rated Ally . | . . . . . Total Orders . | . . . . . Ally Attacks . | . . . . . Total Damage . | . . . . . Kills . | . . . . . Allies Corrupted . | . . . . . Allies Melted . | . . . . . Intel | -11 -10 -10 -10 -9 ------- Run | Yrd Mat Min Exi Min Robot Analysis Total . | . . . . . Derelict Logs Recovered 2 | . . 1 . 1 Drone Launches . | . . . . . Drone Recoveries . | . . . . . Exploration | -11 -10 -10 -10 -9 ------------- Run | Yrd Mat Min Exi Min Turns Passed 1647 | 109 627 291 329 291 Spaces Moved 848 | 58 219 124 252 195 Core 9 | 8 . . . 1 Treads 318 | 50 219 49 . . Legs . | . . . . . Wheels 521 | . . 75 252 194 Hover . | . . . . . Flight . | . . . . . Fastest Speed 50 | 50 160 115 130 130 Average Speed 164 | 156 215 190 130 137 Slowest Speed 1450 | 200 240 320 130 1450 Overloaded Moves . | . . . . . Propulsion Burnouts . | . . . . . Robots Hopped . | . . . . . Cave-ins Triggered . | . . . . . Exploration Rate (%) 39 | 4 51 28 60 54 Regions Visited 4 Branch Regions 3 Pre-discovered Areas 2 | . . 1 1 . Known Exits Taken . | . . . . . Unknown Exits Taken 4 | 1 1 1 1 . Scrap Searched 3 | . . 2 . 1 Spaces Dug 17 | . . . . 17 Terrain Destroyed 60 | . . . . 60 Melee . | . . . . . Projectile . | . . . . . AOE 60 | . . . . 60 Terrain Rammed . | . . . . . Walls Destroyed . | . . . . . Machines Disabled . | . . . . . Actions | -11 -10 -10 -10 -9 --------- Run | Yrd Mat Min Exi Min Total 1009 | 69 311 158 253 218 Wait 67 | . 45 13 . 9 Move 844 | 57 218 123 251 195 Hop . | . . . . . Pick Up 17 | 3 8 3 2 1 Fast Attach 9 | 7 2 . . . Attach 2 | . . 2 . . Detach 1 | . . 1 . . Swap 9 | . 2 4 . 3 Drop 6 | . 4 2 . . Fire 53 | 2 31 10 . 10 Melee . | . . . . . Ram . | . . . . . Kick . | . . . . . Crush 1 | . 1 . . . Escape Stasis . | . . . . . Rewire . | . . . . . Trap . | . . . . . Miscellaneous . | . . . . . Route ------- -11/Scrapyard -10/Materials (discovered 2 exits: [*Mat] / *Min) -10/Mines -10/Exiles -9/Mines History --------- Turn | Location | Event 11 | -11/Scrapyard | Discovered new exit (range 15) 110 | -11/Scrapyard | Entered Materials 310 | -10/Materials | Build established: Mutant 566 | -10/Materials | Discovered new exit (range 5) 685 | -10/Materials | Central database locked down 711 | -10/Materials | Discovered new exit (range 12) 737 | -10/Materials | Entered Mines 738 | -10/Mines | Learned location of Storage (-8) 996 | -10/Mines | Found the Drone Emporium 1003 | -10/Mines | Found Prototype Device 1004 | -10/Mines | Identified Sensor Drone Bay 1023 | -10/Mines | Deemed a non-threat by the Exiles lab entrance 1023 | -10/Mines | Discovered new exit (range 5) 1028 | -10/Mines | Entered Exiles 1060 | -10/Exiles | Met 8R-AWN 1084 | -10/Exiles | Met EX-HEX 1121 | -10/Exiles | Met EX-BIN 1136 | -10/Exiles | Aligned with FarCom system 1138 | -10/Exiles | Given EX-Vault access code 1170 | -10/Exiles | Opened EX-Vault 1177 | -10/Exiles | Found PSU Rigger 1180 | -10/Exiles | Found AWS/Gauss 1207 | -10/Exiles | Warned to stay clear of 0b10 Research branches 1245 | -10/Exiles | Met EX-DEC 1251 | -10/Exiles | Learned location of Zion (-6) 1341 | -10/Exiles | Discovered new exit (range 14) 1357 | -10/Exiles | Stole two prototypes: PSU Rigger, AWS/Gauss 1357 | -10/Exiles | Entered Mines 1429 | -9/Mines | Found a hidden stash of uninstalled traps 1589 | -9/Mines | Assembled infested the area 1594 | -9/Mines | Assisted by a Guerilla fighting off Assembled 1645 | -9/Mines | Core integrity fell below 50% 1648 | -9/Mines | Core integrity fell below 20% 1648 | -9/Mines | Destroyed by as-98097 with Assembled Blade Last Messages --------------- 01624_ as-03912 destroyed. 01624_ Destroyed Asb. F-torch. 01624_ as-20892 destroyed. 01624_ Destroyed Asb. F-torch. 01624_ as-20615 destroyed. 01630_ as-04483 destroyed. 01631_ The unstable cave ceiling collapses. 01632_ Acquired 18 matter. 01633_ K-01 Serf collects debris. 01634_ as-45246 destroyed. 01635_ Lgt. Armor Plating destroyed. 01637_ Grenade Launcher destroyed. 01638_ K-01 Serf collects debris. 01641_ Com. Wheel destroyed. 01642_ K-01 Serf collects debris. 01644_ Com. Wheel destroyed. 01644_ Assault Rifle destroyed. 01644_ System corrupted by crushing effect (+5). 01644_ System corrupted by crushing effect (+3). 01645_ The unstable cave ceiling collapses. Map ----- +----------------------------------------------------+ | ???????????????????????????????# ## | | ???????????????????????????????## ##? | | ????????????????????????????????## ## #?? | | ?????????????????????????????????####### #?? | | ???????????????????????????????????????##### #?? | | ????????????????????????????????????####???# #?? | | ?????????????????????????# ???????### ##### #?? | | ????????????????????????## ?????## ## #?? | | ??????????????????????? # ????# #?? | | ???????????????????????? ???# # #?? | | ?????????????????????????# ??## ##### ### | | ?????????????????????#???# #?## ##???# | | ?????????????????? #???# ## ##???##### | | ????????????????? ##??# = ##??????# | | ????????????????? a # ??####!% #??????## | | ????????????????? a ?????# * #???????? | | ??????????????????# a ?????# ##???????? | | ???????????????????# ###### % ##???????? | | ??????????????????## ## ## ######???? | | ??????????????????? # ### ### ####? | | ?????????????????##?# ## # # ## ## | | ????????????????## ## aa ### ###### # | | ??????????? ##### ! ## | | ???????????? % #k# = ### | | ???????????????# =a! a =%##?## | | ????????????????# @a = ## |#???# | | ????????????????# ## a # #???# | | ???????????????????## # #???# | | ????????????????????## # # #???# | | ?????????????????????## ######## ##???# | | ??????????????????????#####??????# ##????# | | ????????????????????????????????? ##?????# | | ???????????????????????????????? #??????## | | ??????????????????????????????? #???????### | | ??????????????????????????????? ##??????????# | | ?????????????????s????????????? ##???????????? | | ????????????????s??????????????? ##????????????? | | ???????????????????????????????? ##??????????????? | | ???????????????s????????????????#????????????????? | | ?????????????????????????????????????????????????? | | ?????????????????????????????????????????????????? | | ?????????????????????????????????????????????????? | | ?????????????????????????????????????????????????? | | | | | | | | | | | | | | | +----------------------------------------------------+ Best States ------------- Heat Dissipation 25 Energy Generation 14 Energy Capacity 250 Matter Stores 300 Matter Capacity 300 Sight Range 16 Terrain Scan Density 10 Armor Coverage 150 Evasion (%) 40 Recoil Reduction 2 Item Schematics ----------------- Cargo Storage Unit | -10/Materials | Hacked Robot Schematics ------------------ None Fabricated ------------ Nothing Alien Tech Used ----------------- None Achievements -------------- None Challenges ------------ None Game ------ Seed AblativeThiefCanceller Manual? 0 Play Time 00:14:01 Cumulative 144.6 hours Start 2025.03.21 @ 17:11:18 End 2025.03.21 @ 23:12:21 Sessions 2 Manual Loads 0 Difficulty Rogue Special Mode None Game No. 204 Rogue 204 Adventurer 0 Explorer 0 Win Type - Total 1 Types 1/0/0/0/0/0/0/0/0 Lore% 50 Gallery% 55 Achievement% 53 Wizard Run 0 Options --------- Layout 1 ASCII 0 Keyboard 0 Movement Mouse Keybinds 0 Fullscreen 2 Font 32/Smallcaps Map View 50x40 Zoom Use 0% Tactical HUD 1 Map Filters NONE Filters NONE Steam 1 RUN: 66ad4a7a-c25e-4e82-b8ca-c6a8be67367a